bitfinex/quotes_ETHUSD_20250909
["timestamp","ask_amount","ask_price","bid_price","bid_amount"]
[1757405392233,9.84702273,4355.4,4355.3,0.29590001]
[1757405392817,9.84702273,4355.4,4355.3,0.94260001]
[1757405394209,9.84702273,4355.4,4355.3,0.29590001]
[1757405395129,5.99302273,4355.4,4355.3,0.29590001]
[1757405395290,9.35650351,4355.4,4355.3,0.29590001]
[1757405395496,9.84702273,4355.4,4355.3,1.40240001]
[1757405396395,9.84702273,4355.4,4355.3,0.94260001]
[1757405396595,9.84702273,4355.4,4355.3,0.29590001]
[1757405397890,9.84786217,4355.4,4355.3,0.29590001]
[1757405398489,2.29605308,4355.3,4355.2,0.002]
[1757405398701,4.61889464,4355.3,4355.2,0.002]
[1757405399134,4.91289464,4355.3,4355.2,0.002]
[1757405399518,5.38189464,4355.3,4355.2,0.002]
[1757405399704,5.38109464,4355.3,4355.2,0.002]
[1757405400358,2.29621125,4355.0,4354.9,0.002]
[1757405400559,13.38008158,4355.0,4354.9,0.002]
[1757405400765,13.8706008,4355.0,4354.9,0.002]
[1757405402249,14.6398008,4355.0,4354.9,0.002]
[1757405402467,14.1679008,4355.0,4354.9,0.002]
[1757405402654,13.8706008,4355.0,4354.9,0.002]
[1757405402822,13.8706008,4355.0,4354.9,0.9281]
[1757405403177,6.98116812,4355.0,4354.9,1.3711]
[1757405403320,6.4906489,4355.0,4354.9,1.3711]
[1757405403518,6.4906489,4355.0,4354.9,0.9281]
[1757405403745,6.4906489,4355.0,4354.9,1.3711]
[1757405404961,6.4906489,4355.0,4354.9,0.9281]
[1757405406954,6.4906489,4355.0,4354.9,0.3166]
[1757405407348,6.4906489,4355.0,4354.9,0.9281]
[1757405408276,8.14148007,4355.0,4354.9,0.002]
[1757405408444,8.33469929,4355.0,4354.9,0.002]
[1757405408769,8.33469929,4355.0,4354.9,0.9281]
[1757405409192,6.98116812,4355.0,4354.9,1.3711]
[1757405409356,6.4906489,4355.0,4354.9,0.9281]
[1757405409534,6.4906489,4355.0,4354.9,1.3711]
[1757405409972,0.34143765,4355.0,4354.9,1.3711]
[1757405410181,6.36302053,4355.0,4354.9,1.51111]
[1757405410548,4.06680928,4355.0,4354.9,1.51111]
[1757405411274,6.36302053,4355.0,4354.9,1.51111]
[1757405411663,4.06680928,4355.0,4354.9,1.51111]
[1757405412070,6.36302053,4355.0,4354.9,1.51111]
[1757405412271,0.1144,4355.3,4354.9,1.51111]
[1757405412446,0.1144,4355.3,4355.0,1.23127311]
[1757405412849,0.1144,4355.3,4355.2,0.3146]
[1757405413388,0.1144,4355.3,4355.2,1.3691]
[1757405413994,2.29683144,4355.8,4355.2,1.3691]
[1757405414148,0.1144,4355.6,4355.3,1.43870666]
[1757405414346,0.1144,4355.6,4355.5,0.3146]
[1757405414744,0.1144,4355.6,4355.5,1.3691]
[1757405417268,0.1154,4355.6,4355.5,1.3691]
[1757405417444,0.1154,4355.6,4355.5,1.50601]
[1757405422269,0.1154,4355.6,4355.5,1.3691]
[1757405422697,2.41129493,4355.6,4355.5,1.3691]
[1757405422914,0.1154,4355.6,4355.5,0.9261]
[1757405423115,0.1154,4355.6,4355.5,1.3691]
[1757405423424,2.41129493,4355.6,4355.5,0.3146]
[1757405423916,2.41129493,4355.6,4355.5,0.9261]
[1757405424216,0.1154,4355.6,4355.5,0.9261]
[1757405425221,0.1154,4355.6,4355.5,1.06301]
[1757405425424,3.9664,4355.6,4355.5,1.50601]
[1757405425988,3.9656,4355.6,4355.5,1.50601]
[1757405427991,0.1146,4355.6,4355.5,1.50601]
[1757405432808,0.1146,4355.6,4355.5,1.06301]
[1757405433012,0.1146,4355.6,4355.5,0.9261]
[1757405434550,0.1146,4355.6,4355.5,3.68314765]
[1757405434748,0.001,4355.6,4355.5,3.68314765]
[1757405435719,0.001,4355.6,4355.5,1.3872]
[1757405435956,0.001,4355.6,4355.5,3.68314765]
[1757405436252,0.001,4355.6,4355.5,4.67741204]
[1757405436558,0.001,4355.6,4355.5,2.38146439]
[1757405436960,0.001,4355.6,4355.5,4.67741204]
[1757405442177,0.001,4355.6,4355.5,2.38146439]
[1757405442476,0.001,4355.6,4355.5,1.92036439]
[1757405442777,0.001,4355.6,4355.5,4.23927151]
[1757405442953,0.001,4355.6,4355.5,1.94332386]
[1757405443355,0.001,4355.6,4355.5,4.70037151]
[1757405443535,0.001,4355.6,4355.5,4.67741204]
[1757405443937,0.001,4355.6,4355.5,4.21631204]
[1757405444845,0.001,4355.6,4355.5,7.21631204]
[1757405445083,0.001,4355.6,4355.5,7.67741204]
[1757405446180,0.001,4355.6,4355.5,11.52541204]
[1757405446376,0.001,4355.6,4355.5,11.06431204]
[1757405447672,0.001,4355.6,4355.5,11.06821204]
[1757405451973,0.0002,4355.6,4355.5,11.06821204]
[1757405454989,0.0002,4355.6,4355.5,11.07021204]
[1757405455493,0.0002,4355.6,4355.5,11.18461204]
[1757405455790,0.0002,4355.6,4355.5,11.64571204]
[1757405455959,0.0002,4355.6,4355.5,11.29901204]
[1757405458587,0.0002,4355.6,4355.5,10.36901204]
[1757405459094,0.2959,4355.6,4355.5,10.36901204]
[1757405459400,0.0002,4355.6,4355.5,10.36901204]
[1757405459890,0.0002,4355.6,4355.5,0.002]
[1757405459891,1.3688,4355.6,4355.5,0.002]
[1757405460104,0.9177,4355.6,4355.5,3.849]
[1757405460420,0.747,4355.6,4355.5,0.002]
[1757405461102,1.3688,4355.6,4355.5,0.002]
[1757405461291,4.256275,4355.6,4355.5,0.002]
[1757405461690,4.3481206,4355.6,4355.5,0.002]
[1757405462014,2.2961058,4355.2,4355.1,0.002]
[1757405462198,8.11869147,4355.2,4355.1,0.002]
[1757405462407,8.64703006,4355.2,4355.1,0.002]
[1757405462615,10.82303629,4355.2,4355.1,0.002]
[1757405463235,10.6094977,4355.2,4355.1,0.002]
[1757405467135,10.39591203,4355.2,4355.1,0.002]
[1757405469305,8.6767058,4355.2,4355.1,0.002]
[1757405469501,4.8297058,4355.2,4355.1,0.002]
[1757405469915,8.2199058,4355.2,4355.1,0.002]
[1757405470240,0.09184603,4355.3,4355.1,0.9086]
[1757405470465,0.0002,4355.6,4355.3,2.29605308]
[1757405470626,0.0002,4355.6,4355.4,0.32276141]
[1757405470810,0.0002,4355.6,4355.5,0.3125]
[1757405471011,0.0002,4355.6,4355.5,0.9066]
[1757405473207,0.0002,4355.6,4355.5,0.9086]
[1757405475580,0.0002,4355.6,4355.5,3.9086]
[1757405475794,0.0002,4355.6,4355.5,1.58457894]
[1757405476451,0.0002,4355.6,4355.5,7.34428606]
[1757405476640,0.0002,4355.6,4355.5,7.32132659]
[1757405477659,0.0002,4355.6,4355.5,5.02537894]
[1757405477877,0.0002,4355.6,4355.5,6.88052659]
[1757405478072,0.0002,4355.6,4355.5,7.43572659]
[1757405478270,0.0004,4355.8,4355.7,2.29584222]
[1757405478580,0.0004,4355.8,4355.7,6.60339752]
[1757405478780,0.0004,4355.8,4355.7,7.9278391]
[1757405479173,0.0004,4355.8,4355.7,7.4870391]
[1757405480560,0.0004,4355.8,4355.7,7.9278391]
[1757405481088,0.0004,4355.8,4355.7,7.4870391]
[1757405481259,0.0004,4355.8,4355.7,7.9278391]
[1757405483248,0.0004,4355.8,4355.7,7.4870391]
[1757405485587,0.0004,4355.8,4355.7,7.9278391]
[1757405486763,0.0004,4355.8,4355.7,7.4870391]
[1757405487382,0.0004,4355.8,4355.7,7.9278391]
[1757405487684,0.0004,4355.8,4355.7,8.0422391]
[1757405488365,0.3152,4355.8,4355.7,6.6948391]
[1757405489056,0.0004,4355.8,4355.7,6.6948391]
[1757405489258,0.772,4355.8,4355.7,6.9604]
[1757405489789,0.772,4355.8,4355.7,3.9604]
[1757405490088,0.772,4355.8,4355.7,6.9604]
[1757405492062,0.772,4355.8,4355.7,9.25624222]
[1757405492063,0.3152,4355.8,4355.7,9.25624222]
[1757405492268,0.3152,4355.8,4355.7,10.4116662]
[1757405492562,0.0004,4355.8,4355.7,10.4116662]
[1757405494745,0.0004,4355.8,4355.7,7.5035662]
[1757405495340,0.0004,4355.8,4355.7,7.9458662]
[1757405496637,0.0004,4355.8,4355.7,7.5035662]
[1757405501712,0.0004,4355.8,4355.7,7.9458662]
[1757405502944,0.0004,4355.8,4355.7,7.5035662]
[1757405503348,0.0004,4355.8,4355.7,7.9458662]
[1757405504460,0.0006,4356.1,4356.0,2.29568411]
[1757405504627,0.0006,4356.1,4356.0,9.94876898]
[1757405505919,0.0006,4356.1,4356.0,7.65308487]
[1757405506121,0.7569,4356.1,4356.0,9.94876898]
[1757405506774,0.2943,4356.1,4356.0,9.94876898]
[1757405506962,0.0006,4356.1,4356.0,9.94876898]
[1757405508060,0.0006,4356.1,4356.0,10.88666898]
[1757405508230,0.0006,4356.1,4356.0,11.44336898]
[1757405509413,0.0006,4356.1,4356.0,11.00106898]
[1757405511507,0.0006,4356.1,4356.0,10.37906898]
[1757405511866,0.0006,4356.1,4356.0,11.00106898]
[1757405515719,0.0006,4356.1,4356.0,11.79306898]
[1757405515891,0.0006,4356.1,4356.0,12.23536898]
[1757405521025,0.0006,4356.1,4356.0,11.79306898]
[1757405521226,0.0006,4356.1,4356.0,10.85516898]
[1757405521626,0.0006,4356.1,4356.0,11.73546898]
[1757405521823,0.0006,4356.1,4356.0,15.96546898]
[1757405522347,0.0006,4356.1,4356.0,11.73546898]
[1757405525557,0.0006,4356.1,4356.0,12.19096898]
[1757405525758,0.0006,4356.1,4356.0,11.73546898]
[1757405525939,0.001,4356.6,4356.4,0.792]
[1757405526254,0.001,4356.6,4356.5,42.4233311]
[1757405526549,70.31974481,4356.7,4356.6,36.08736794]
[1757405526748,0.001,4357.3,4356.6,36.08736794]
[1757405526749,0.001,4357.3,4356.9,0.792]
[1757405526952,28.19007164,4357.2,4357.1,3.792]
[1757405527152,27.98981492,4357.2,4357.1,35.2422]
[1757405528123,27.98981492,4357.2,4357.1,35.93036099]
[1757405528329,27.98981492,4357.2,4357.1,37.57468273]
[1757405528529,27.98981492,4357.2,4357.1,38.1921932]
[1757405529223,27.98981492,4357.2,4357.1,40.48729774]
[1757405530422,27.98981492,4357.2,4357.1,38.842976]
[1757405530624,27.98901492,4357.2,4357.1,38.387476]
[1757405531019,28.29741492,4357.2,4357.1,1.42007146]
[1757405531226,28.73381492,4357.2,4357.1,3.9574]
[1757405531541,28.73381492,4357.2,4357.1,7.7494]
[1757405532240,27.98901492,4357.2,4357.1,10.33420454]
[1757405533761,27.98901492,4357.2,4357.1,10.04450454]
[1757405535421,27.98901492,4357.2,4357.1,7.7494]
[1757405535422,28.73381492,4357.2,4357.1,7.7494]
[1757405536249,28.73381492,4357.2,4357.1,8.52434]
[1757405537527,27.98901492,4357.2,4357.1,8.52434]
[1757405537964,28.29741492,4357.2,4357.1,8.52434]
[1757405538267,28.73381492,4357.2,4357.1,8.52434]
[1757405539562,28.73381492,4357.2,4357.1,8.52334]
[1757405542369,28.73381492,4357.2,4357.1,12.75334]
[1757405543269,28.73381492,4357.2,4357.1,12.75534]
[1757405544630,27.98901492,4357.2,4357.1,13.04504]
[1757405544861,27.98901492,4357.2,4357.1,13.63564]
[1757405546374,28.29741492,4357.2,4357.1,12.75534]
[1757405546664,28.73381492,4357.2,4357.1,15.05044454]
[1757405550246,27.98901492,4357.2,4357.1,15.34014454]
[1757405550450,27.98901492,4357.2,4357.1,15.93074454]
[1757405551772,28.29851492,4357.2,4357.1,12.75534]
[1757405552076,28.75921492,4357.2,4357.1,12.75534]
[1757405552561,28.29851492,4357.2,4357.1,12.75534]
[1757405552759,27.98901492,4357.2,4357.1,12.75534]
[1757405554979,28.29851492,4357.2,4357.1,12.75534]
[1757405555191,28.75921492,4357.2,4357.1,12.75534]
[1757405556156,27.98901492,4357.2,4357.1,15.05044454]
[1757405556494,27.98901492,4357.2,4357.1,16.99886628]
[1757405556902,27.98821492,4357.2,4357.1,16.99886628]
[1757405557063,27.98821492,4357.2,4357.1,12.46476628]
[1757405557795,27.98821492,4357.2,4357.1,12.76886628]
[1757405557999,27.98821492,4357.2,4357.1,12.46476628]
[1757405558294,28.75841492,4357.2,4357.1,14.22576628]
[1757405558997,28.29771492,4357.2,4357.1,14.22576628]
[1757405559522,27.98821492,4357.2,4357.1,14.22576628]
[1757405559664,27.98821492,4357.2,4357.1,15.47986628]
[1757405560163,27.98821492,4357.2,4357.1,15.46546628]
[1757405560364,27.98821492,4357.2,4357.1,12.87114454]
[1757405560764,27.98821492,4357.2,4357.1,0.002]
[1757405560765,29.71071492,4357.2,4357.1,0.002]
[1757405560958,29.71071492,4357.2,4357.1,3.842]
[1757405560959,32.00576678,4357.2,4357.1,3.842]
[1757405561162,32.00576678,4357.2,4357.1,3.002]
[1757405561364,29.71071492,4357.2,4357.1,3.002]
[1757405561564,32.00576678,4357.2,4357.1,3.002]
[1757405563684,29.71071492,4357.2,4357.1,3.002]
[1757405564172,32.00576678,4357.2,4357.1,3.002]
[1757405566518,36.40587086,4357.2,4357.1,0.002]
[1757405566865,32.7790577,4357.2,4357.1,0.002]
[1757405567098,36.40587086,4357.2,4357.1,0.002]
[1757405569405,35.84576678,4357.2,4357.1,0.002]
[1757405582113,36.0585712,4357.2,4357.1,0.002]
[1757405582708,2.29531526,4356.7,4356.6,1e-08]
[1757405582943,8.10831968,4356.7,4356.6,1e-08]
[1757405583156,9.80731968,4356.7,4356.6,1e-08]
[1757405583350,11.01757617,4356.7,4356.6,1e-08]
[1757405583716,11.3578586,4356.7,4356.6,1e-08]
[1757405583914,11.3578586,4356.7,4355.6,0.002]
[1757405583915,2.29552601,4356.3,4355.8,1e-08]
[1757405584154,2.29573681,4355.9,4355.8,1e-08]
[1757405584358,8.19033681,4355.9,4355.8,1e-08]
[1757405584513,11.53481815,4355.9,4355.8,1e-08]
[1757405586526,7.69481815,4355.9,4355.8,1e-08]
[1757405586725,9.80854123,4355.9,4355.8,1e-08]
[1757405586926,5.96854123,4355.9,4355.8,1e-08]
[1757405587118,9.80854123,4355.9,4355.8,1e-08]
[1757405587342,8.84054123,4355.9,4355.8,1e-08]
[1757405587542,4.35033681,4355.9,4355.8,1e-08]
[1757405587741,8.19133681,4355.9,4355.8,1e-08]
[1757405588276,8.62873681,4355.9,4355.8,1e-08]
[1757405588452,9.72117363,4355.9,4355.8,1e-08]
[1757405588653,9.28377363,4355.9,4355.8,1e-08]
[1757405588844,4.05673681,4355.9,4355.8,1e-08]
[1757405589058,7.89773681,4355.9,4355.8,1e-08]
[1757405589621,4.05673681,4355.9,4355.8,0.30080001]
[1757405589824,7.89773681,4355.9,4355.8,1.74570001]
[1757405590256,7.89773681,4355.9,4355.8,1.27380001]
[1757405590625,7.89773681,4355.9,4355.8,1e-08]
[1757405591131,7.89773681,4355.9,4355.8,0.30080001]
[1757405592573,4.05673681,4355.9,4355.8,0.30080001]
[1757405592776,7.89773681,4355.9,4355.8,0.30080001]
[1757405594548,8.19133681,4355.9,4355.8,0.00200001]
[1757405594747,9.66637034,4355.9,4355.8,0.00200001]
[1757405596459,8.62873681,4355.9,4355.8,0.00200001]
[1757405600765,7.89773681,4355.9,4355.8,0.30280001]
[1757405601595,0.4374,4356.3,4355.8,1.74770001]
[1757405601596,3.841,4356.2,4355.8,1.74770001]
[1757405601805,3.841,4356.2,4355.9,1.46785736]
[1757405602007,3.9554,4356.3,4356.1,0.3008]
[1757405602169,3.9554,4356.3,4356.1,0.32375631]
[1757405602368,3.9554,4356.3,4356.2,1.4449]
[1757405602581,6.25092601,4356.3,4356.2,1.7457]
[1757405602770,6.25092601,4356.3,4356.2,1.2738]
[1757405604970,3.9554,4356.3,4356.2,1.7457]
[1757405605506,6.24992601,4356.3,4356.2,1.7457]
[1757405605672,3.9544,4356.3,4356.2,1.7457]
[1757405605867,6.24992601,4356.3,4356.2,1.7457]
[1757405606068,6.24992601,4356.3,4356.2,1.2738]
[1757405606270,0.1144,4356.3,4356.2,1.2738]
[1757405606596,0.1144,4356.3,4356.2,1.7457]
[1757405608247,2.40992601,4356.3,4356.2,1.7457]
[1757405608606,0.1144,4356.3,4356.2,1.7457]
[1757405609028,0.1136,4356.3,4356.2,1.73724959]
[1757405609558,0.1136,4356.3,4356.2,1.26534959]
[1757405610446,4.59115742,4356.2,4355.8,0.00200001]
[1757405610749,2.29573681,4355.9,4355.8,0.00200001]
[1757405610955,6.42933681,4355.9,4355.8,0.00200001]
[1757405611316,6.86673681,4355.9,4355.8,0.00200001]
[1757405612924,6.42933681,4355.9,4355.8,0.00200001]
[1757405613123,6.90423681,4355.9,4355.8,0.00200001]
[1757405614884,9.01380436,4355.9,4355.8,0.00200001]
[1757405617152,5.17385426,4355.9,4355.8,0.00200001]
[1757405617359,9.01385426,4355.9,4355.8,0.00200001]
[1757405618683,9.35472943,4355.9,4355.8,0.00200001]
[1757405624205,9.14168245,4355.9,4355.8,0.00200001]
[1757405624690,9.14157699,4355.9,4355.8,0.00200001]
[1757405625758,2.29584222,4355.7,4355.6,0.002]
[1757405626076,7.66983312,4355.7,4355.6,0.002]
[1757405626279,9.42673312,4355.7,4355.6,0.002]
[1757405628091,9.42673312,4355.7,4355.2,1e-08]
[1757405628291,9.42673312,4355.7,4355.1,0.042]
[1757405628292,2.2961058,4355.2,4355.1,1e-08]
[1757405628596,8.79994543,4355.2,4355.1,1e-08]
[1757405628796,9.10544543,4355.2,4355.1,1e-08]
[1757405630358,9.10544543,4355.2,4355.1,0.00200001]
[1757405631291,2.29621125,4355.0,4354.8,0.027]
[1757405631494,7.19190634,4355.0,4354.8,0.027]
[1757405631699,8.18490481,4355.0,4354.8,0.027]
[1757405632001,9.16140481,4355.0,4354.8,0.027]
[1757405632605,10.39140481,4355.0,4354.8,0.027]
[1757405633769,4.79450481,4355.0,4354.8,0.027]
[1757405633970,8.63450481,4355.0,4354.8,0.027]
[1757405634182,8.94000481,4355.0,4354.8,0.027]
[1757405634703,9.41490481,4355.0,4354.8,0.027]
[1757405635104,9.41410481,4355.0,4354.8,0.027]
[1757405635307,10.64410481,4355.0,4354.8,0.027]
[1757405636006,9.86370481,4355.0,4354.8,0.027]
[1757405636503,10.16920481,4355.0,4354.8,0.027]
[1757405637424,11.39920481,4355.0,4354.8,0.027]
[1757405638613,7.55920481,4355.0,4354.8,0.027]
[1757405638920,7.55920481,4355.0,4354.9,0.3007]
[1757405638921,7.42800972,4355.0,4354.9,0.3007]
[1757405639222,7.42800972,4355.0,4354.9,1.2616]
[1757405639223,11.26900972,4355.0,4354.9,1.2616]
[1757405641329,11.26900972,4355.0,4354.9,0.3007]
[1757405641529,11.26900972,4355.0,4354.9,0.002]
[1757405641730,13.19010714,4355.0,4354.9,0.002]
[1757405642307,13.62330714,4355.0,4354.9,0.002]
[1757405642530,13.19010714,4355.0,4354.9,0.002]
[1757405642730,12.88760714,4355.0,4354.9,0.002]
[1757405643992,7.42800972,4355.0,4354.9,1.2258]
[1757405644225,7.21541125,4355.0,4354.9,1.2258]
[1757405644425,11.05641125,4355.0,4354.9,1.6909]
[1757405644588,5.0344,4355.0,4354.9,1.6909]
[1757405644818,7.33061125,4355.0,4354.9,1.86289]
[1757405645826,11.17161125,4355.0,4354.9,1.2258]
[1757405646031,11.17161125,4355.0,4354.9,1.6909]
[1757405647336,7.33061125,4355.0,4354.9,1.6909]
[1757405647557,11.17161125,4355.0,4354.9,1.6909]
[1757405648258,11.17261125,4355.0,4354.9,1.6909]
[1757405649557,7.33161125,4355.0,4354.9,1.86289]
[1757405649868,11.17261125,4355.0,4354.9,1.2258]
[1757405650728,11.17261125,4355.0,4354.9,1.6909]
[1757405651331,11.17261125,4355.0,4354.9,1.2258]
[1757405652059,11.17261125,4355.0,4354.9,1.6909]
[1757405653139,4.921,4355.0,4354.9,1.6909]
[1757405653667,4.921,4355.0,4354.9,1.87433]
[1757405659143,4.921,4355.0,4354.9,4.17059397]
[1757405659568,4.921,4355.0,4354.9,1.87433]
[1757405659729,4.921,4355.0,4354.9,4.17059397]
[1757405660030,4.921,4355.0,4354.9,4.96259397]
[1757405661331,4.9202,4355.0,4354.9,4.96259397]
[1757405664072,4.9202,4355.0,4354.9,9.19259397]
[1757405664367,4.9202,4355.0,4354.9,9.47923]
[1757405664571,4.9202,4355.0,4354.9,4.41543]
[1757405664770,4.9202,4355.0,4354.9,8.56753]
[1757405665561,4.9202,4355.0,4354.9,9.47923]
[1757405669909,4.9202,4355.0,4354.9,5.24923]
[1757405670106,4.9202,4355.0,4354.9,5.36363]
[1757405670306,4.9202,4355.0,4354.9,4.45193]
[1757405671393,4.9202,4355.0,4354.9,5.36363]
[1757405672303,4.9202,4355.0,4354.9,7.65989397]
[1757405672465,4.9202,4355.0,4354.9,8.11249397]
[1757405673006,4.9202,4355.0,4354.9,5.81623]
[1757405673367,4.9202,4355.0,4354.9,8.11249397]
[1757405673584,4.9202,4355.0,4354.9,5.81623]
[1757405674180,4.9202,4355.0,4354.9,8.11249397]
[1757405674470,4.9202,4355.0,4354.9,5.81623]
[1757405676373,4.9202,4355.0,4354.9,5.36363]
[1757405677598,4.9202,4355.0,4354.9,4.13983]
[1757405677805,4.9202,4355.0,4354.9,4.43613]
[1757405679474,4.9202,4355.0,4354.9,4.13983]
[1757405680204,5.2139,4355.0,4354.9,4.13983]
[1757405681214,5.6823,4355.0,4354.9,4.13983]
[1757405681791,5.6823,4355.0,4354.9,3.9564]
[1757405681998,6.5819,4355.0,4354.9,3.9564]
[1757405682199,6.5819,4355.0,4354.9,3.9554]
[1757405683017,5.6823,4355.0,4354.9,3.9554]
[1757405683917,5.2139,4355.0,4354.9,3.9554]
[1757405684304,5.6823,4355.0,4354.9,3.9554]
[1757405684589,6.5819,4355.0,4354.9,3.9554]
[1757405685186,4.9202,4355.0,4354.9,5.37314]
[1757405685618,4.9202,4355.0,4354.9,6.26414]
[1757405685787,4.9202,4355.0,4354.9,8.56040397]
[1757405687532,4.9194,4355.0,4354.9,6.26414]
[1757405687925,4.9194,4355.0,4354.9,8.56040397]
[1757405690153,4.9194,4355.0,4354.9,42.80500397]
[1757405690649,4.9194,4355.0,4354.9,43.49359617]
[1757405691254,4.9194,4355.0,4354.9,43.04099617]
[1757405691842,4.9194,4355.0,4354.9,13.04099617]
[1757405692148,5.2131,4355.0,4354.9,8.97609835]
[1757405692348,5.6815,4355.0,4354.9,12.81509835]
[1757405692649,5.2131,4355.0,4354.9,12.81509835]
[1757405692857,4.9194,4355.0,4354.9,12.81509835]
[1757405693452,4.9194,4355.0,4354.9,11.16510397]
[1757405696169,5.2131,4355.0,4354.9,11.16510397]
[1757405696341,5.6815,4355.0,4354.9,11.16510397]
[1757405696538,5.6815,4355.0,4354.9,6.9554]
[1757405696728,6.5811,4355.0,4354.9,6.9554]
[1757405698534,5.2131,4355.0,4354.9,6.9554]
[1757405699025,5.6815,4355.0,4354.9,6.9554]
[1757405701214,6.5811,4355.0,4354.9,6.9554]
[1757405702602,8.87731125,4355.0,4354.9,6.841]
[1757405702977,6.5811,4355.0,4354.9,6.841]
[1757405703864,8.87731125,4355.0,4354.9,6.841]
[1757405704111,6.5811,4355.0,4354.9,6.841]
[1757405704777,5.6815,4355.0,4354.9,6.841]
[1757405705162,4.9194,4355.0,4354.9,7.1471]
[1757405705365,4.9194,4355.0,4354.9,12.38401397]
[1757405705616,4.9194,4355.0,4354.9,43.0163565]
[1757405705900,3.9854,4355.0,4354.9,43.70490762]
[1757405706484,3.9854,4355.0,4354.9,13.38232818]
[1757405706664,3.9854,4355.0,4354.9,43.38232818]
[1757405706870,3.9854,4355.0,4354.9,43.07256509]
[1757405707065,3.9854,4355.0,4354.9,42.63206509]
[1757405707268,3.9854,4355.0,4354.9,41.76736509]
[1757405707497,3.9854,4355.0,4354.9,43.07256509]
[1757405708070,3.9854,4355.0,4354.9,11.76736509]
[1757405708299,3.9854,4355.0,4354.9,7.2809296]
[1757405708527,7.88191125,4355.0,4354.9,0.002]
[1757405708670,2.29626397,4354.9,4353.8,0.025]
[1757405708878,2.29642217,4354.6,4353.8,0.025]
[1757405709075,2.29642217,4354.6,4353.1,0.72886812]
[1757405709076,0.2927,4353.9,4353.1,0.04]
[1757405709373,2.29694965,4353.6,4353.1,0.04]
[1757405709587,0.2927,4353.9,4353.1,0.04]
[1757405709588,2.5898607,4353.2,4353.1,0.04]
[1757405709881,7.7394607,4353.2,4353.1,0.04]
[1757405710093,3.842,4353.6,4353.1,3.04]
[1757405710292,3.843,4353.6,4353.1,3.3461]
[1757405710600,3.843,4353.6,4353.2,3.843]
[1757405710902,4.2754,4353.6,4353.2,3.843]
[1757405711211,4.7182,4353.6,4353.2,3.843]
[1757405711391,2.72940267,4353.5,4353.2,3.843]
[1757405711705,0.8752,4354.1,4353.3,3.0]
[1757405711867,4.7182,4354.1,4353.5,0.3061]
[1757405712071,2.2967394,4354.0,4353.7,3.0]
[1757405712272,0.2927,4353.8,4353.7,3.0]
[1757405712979,3.46474413,4353.8,4353.7,3.0]
[1757405713180,3.89714413,4353.8,4353.4,3.845]
[1757405713380,3.89714413,4353.8,4353.1,0.04]
[1757405713381,1.3076,4353.7,4353.1,0.04]
[1757405713716,2.2963607,4353.2,4353.1,0.04]
[1757405714010,2.5890607,4353.2,4353.1,0.04]
[1757405714400,3.8966607,4353.2,4353.1,0.04]
[1757405715606,7.7426607,4353.2,4353.1,0.04]
[1757405715804,5.4463,4353.2,4353.1,0.04]
[1757405716114,4.1387,4353.2,4353.1,0.04]
[1757405716330,6.4358607,4353.2,4353.1,0.04]
[1757405716528,4.5711,4353.2,4353.1,0.04]
[1757405716894,0.33470271,4353.8,4353.1,0.04]
[1757405716895,1.3076,4353.9,4353.1,0.3461]
[1757405717230,0.4324,4353.9,4353.1,3.3461]
[1757405717394,3.846,4353.8,4353.2,0.76326]
[1757405717592,4.2794,4353.9,4353.3,3.0]
[1757405717793,6.57619607,4353.9,4353.2,0.76326]
[1757405718028,3.847,4353.9,4353.2,0.76326]
[1757405718220,6.14381031,4353.9,4353.2,0.76326]
[1757405718729,6.14381031,4353.9,4353.5,0.1144]
[1757405719028,7.45141031,4353.9,4353.5,0.1144]
[1757405719230,0.4324,4353.8,4353.5,0.1144]
[1757405719631,0.2927,4353.6,4353.5,0.1144]
[1757405721545,1.6003,4353.6,4353.1,7.272]
[1757405721696,1.6003,4353.6,4353.2,0.1144]
[1757405721697,1.3076,4353.5,4353.2,0.1144]
[1757405722103,0.2927,4353.3,4353.1,3.042]
[1757405722305,2.2971607,4353.2,4353.1,0.042]
[1757405722519,4.22421563,4353.2,4353.1,0.042]
[1757405722798,3.8974607,4353.2,4353.1,0.042]
[1757405723942,1.6003,4353.2,4353.1,0.042]
[1757405724838,0.8752,4353.7,4353.1,0.3481]
[1757405725135,2.29702015,4353.5,4353.1,0.3481]
[1757405725306,2.72942015,4353.5,4353.1,0.3481]
[1757405726311,3.846,4353.6,4353.1,0.3481]
[1757405726727,2.29700909,4353.5,4353.1,0.3481]
[1757405727048,0.4324,4353.5,4353.1,0.042]
[1757405727543,4.7212,4353.6,4353.1,0.042]
[1757405727748,7.01820156,4353.6,4353.1,0.042]
[1757405728112,2.72942009,4353.5,4353.1,0.042]
[1757405728313,3.60461915,4353.5,4353.1,0.042]
[1757405728948,1.3076,4353.5,4353.1,0.042]
[1757405729143,3.6046225,4353.5,4353.1,0.042]
[1757405729345,1.3076,4353.5,4353.1,0.042]
[1757405729549,2.29691427,4353.7,4353.1,0.042]
[1757405729753,3.845,4353.7,4353.4,0.3061]
[1757405730043,1.3076,4354.1,4353.4,0.3061]
[1757405730454,1.3076,4354.5,4353.6,3.0]
[1757405730637,3.9854,4355.0,4354.5,0.792]
[1757405730837,3.9854,4355.0,4354.7,3.792]
[1757405731017,3.9854,4355.0,4354.7,4.0981]
[1757405731216,3.9854,4355.0,4354.7,4.5386]
[1757405731415,3.9854,4355.0,4354.7,5.12795241]
[1757405731650,3.9854,4355.0,4354.7,6.98382184]
[1757405732252,3.9854,4355.0,4354.7,6.30622184]
[1757405732550,3.9854,4355.0,4354.7,7.97372184]
[1757405732741,1.255,4354.8,4354.7,8.43422184]
[1757405733045,1.255,4354.8,4354.7,38.43422184]
[1757405734463,2.485,4354.8,4354.7,8.43422184]
[1757405734639,2.485,4354.8,4354.7,38.43422184]
[1757405735222,2.486,4354.8,4354.7,38.43422184]
[1757405736742,3.716,4354.8,4354.7,38.43422184]